Workbook

Sheet LÉEME
C2: Léeme
C7: MERCADO - Herramienta de Evaluación de Mercado
C9: Introducción
C10: Esta herramienta complementa el módulo MERCADO en la Caja de herramientas de SPIS. La herramienta sirve para determinar los parámetros geofísicos determinantes para el éxito o fracaso de un SPIS. Si cualquiera de los parámetros obtiene un puntaje de 0, se considera que el área tiene muy poco potencial para SPIS. Un 'sí' de esta evaluación permite la consideración de otros parámetros.
C12: Consejos & trucos
C21: Sinopsis
C22: Esta herramienta incluye las siguientes hojas:
C23: Entrada_Precontrol: Permite un primer control de aptitud del SPIS para proceder con la evaluación detallada.
C24: Entrada_Adjuste de valoración: Proporciona una descripción de los parámetros y permite ajustar una valoración del impacto de las condiciones de mercado
C25: Entrada_Parámetros Geofísicos: Para definir los parámetros geofísicos en el área de interés
C26: Entrada_Condiciones de Mercado: Para definir los parámetros relevantes de negocio importantes para el área objetivo
C27: Salida_Resultados: Muestra una descripción gráfica del potencial de mercado de SPIS en un área
C28: Traducción: Traducción de términos claves usados en la herramienta
C29: Acerca de
C30: Publicado por: GIZ & FAO
C31: Responsable: Proyecto de la GIZ Sustainable Energy for Food - Powering Agriculture Rebecca Navarro
C32: Contacto: Powering.Agriculture@giz.de
C33: Download link: https://energypedia.info/wiki/Toolbox_on_SPIS
C34: Acerca de: Powering Agriculture: An Energy Grand Challenge for Development. Disponible en: https://poweringag.org
C35: Versión: 1.0 (Julio 2018)
C36: La publicación de la Caja de herramientas de sistemas de riego solar ha sido posible gracias al apoyo brindado por la iniciativa mundial Powering Agriculture: An Energy Grand Challenge for Development (PAEGC) (Energización Rural: Un gran desafío energético para el desarrollo). En 2012, la Agencia de los Estados Unidos para el Desarrollo Internacional (USAID), la Agencia Sueca de Cooperación Internacional para el Desarrollo (Sida), el Ministerio Federal de Cooperación Económica y Desarrollo (BMZ) de Alemania, la empresa de energía Duke Energy Corporation y la Corporación de Inversiones Privadas en el Extranjero (OPIC) juntaron recursos para crear la iniciativa PAEGC. El objetivo de PAEGC es fomentar nuevos enfoques sostenibles con el fin de acelerar el desarrollo y asegurar el establecimiento de energías limpias que incrementen la productividad y/o el valor de la agricultura en países en desarrollo y regiones emergentes sin acceso a fuentes de energía confiables, asequibles y limpias.
C37: Las denominaciones empleadas y la presentación del material en este producto informativo no implican juicio alguno por parte de la Deutsche Gesellschaft für Internationale Zusammenarbeit (GIZ) GmbH, la Organización de las Naciones Unidas para la Alimentación y la Agricultura (FAO), o los socios fundadores de la iniciativa PAEGC, sobre la condición jurídica o el grado de desarrollo de ninguno de los países, territorios, ciudades o zonas citados o de sus autoridades, ni respecto de la delimitación de sus fronteras o límites. La mención de empresas o productos de fabricantes en particular, estén o no patentados, no implica que la GIZ, la FAO o alguno de los socios fundadores de la iniciativa PAEGC los aprueben o recomienden, dándoles preferencia sobre otros de naturaleza similar que no se mencionan. Las opiniones expresadas en este producto informativo son las de su(s) autor(es) o autora(s), y no reflejan necesariamente los puntos de vista o las políticas de la GIZ, la FAO o ninguno de los socios fundadores de la iniciativa PAEGC.
C38: La GIZ, la FAO y los socios fundadores de la iniciativa PAEGC fomentan la utilización, la reproducción y la difusión del material presentado en este producto informativo. A menos que se indique lo contrario, el material puede ser copiado, descargado e impreso con fines de estudio privado, enseñanza e investigación científica, o para su utilización en productos o servicios no comerciales, siempre que se otorgue a la GIZ y la FAO el debido reconocimiento como fuentes y como titulares de los derechos de autor.
C39: © GIZ and FAO, 2018

Sheet ENTRADA_Precontrol
E2: ENTRADA - Precontrol
B6: País: | D6: Angola
B7: Área de interés:
B8: Fecha de evaluación:
B9: Nombre del evaluador/a:
A11: 1 | B11: Parámetros Geofísicos | O11: Puntuación máx. posible | P11: Puntuación alcanzada
O12: 9 | P12: =IF(COUNTIF(S14:S17,0)=0,S14+S15+S16,0) -> 7
B13: Preguntas | C13: Fuente de datos de muestra | O13: Respuesta | P13: Aptitud | R13: Parameter | S13: Score | T13: Raw Score
A14: a) | B14: ¿Cuál es la cobertura de terreno predominante en el área? | C14: Cobertura de terreno | O14: Medium forest open to closed (tree cover above 40%) | P14: =VLOOKUP(O14,'Lists 2'!A:B,2,0) -> Marginally Suitable | R14: Land Cover | S14: =IF(P14="Highly Suitable", "3", IF(P14="Moderately Suitable", "2", IF(P14="Marginally Suitable", "1", "0"))) -> 1 | T14: =IF(COUNTIF(S14:S17,0)=0,S14+S15+S16,0) -> 7
A15: b) | B15: ¿Cuál es la irradiación solar anual promedio (kWh/kW pico - valor PVOUT)? | C15: Mapa solar del Banco Mundial | O15: Above 1460 | P15: =IF(O15="0 - 948", "Not Suitable", IF(O15="949 - 1094", "Marginally Suitable", IF(O15="1095 - 1460", "Moderately Suitable", "Highly Suitable"))) -> Highly Suitable | R15: Solar Irradiation | S15: =IF(O15="Above 1460", "3", IF(O15="1095 - 1460", "2", IF(O15="949 - 1094", "1", "0"))) -> 3
A16: c) | B16: ¿Cuáles son los valores promedio mensuales de temperatura y precipitación? | C16: Datos de precipitación del Banco Mundial | P16: =IF(O19=0, "Low Irrigation Requirement",IF(O19=1,"Marginally Suitable",IF(O19=2,"Moderately Suitable","Highly Suitable"))) -> Highly Suitable | R16: Precipitation | S16: =IF(P16="Moderately Suitable",2,IF(P16="Marginally Suitable",1,IF(P16="Low Irrigation Requirement",0,3))) -> 3
C17: E | D17: F | E17: M | F17: A | G17: M | H17: J | I17: J | J17: A | K17: S | L17: O | M17: N | N17: D | O17: Número de meses con aridez:
B19: Temperatura promedio mensual (°C) | C19: 23 | D19: 23 | E19: 23 | F19: 22 | G19: 25 | H19: 18 | I19: 17 | J19: 19.5 | K19: 22.9 | L19: 24.9 | M19: 24.4 | N19: 23.3 | O19: =COUNTIF(C21:N21,">0") -> 5 | R19: Tavg | S19: =AVERAGE(C19:N19) -> 22.16666667 | T19: TSD | U19: =STDEV(C19:N19) -> 2.621357502
B20: Precipitación media mensual (mm) | C20: 221 | D20: 195 | E20: 157 | F20: 43 | G20: 6 | H20: 0 | I20: 0 | J20: 0 | K20: 3.6 | L20: 27.4 | M20: 107.6 | N20: 214.8 | R20: Pavg | S20: =AVERAGE(C20:N20) -> 81.28333333 | T20: PSD | U20: =STDEV(C20:N20) -> 91.74904343
B21: Índice de aridez (Harouna & Carlson 1994) | C21: =((C19-$S$19)/$U$19)-((C20-$S$20)/$U$20) -> -1.20491189 | D21: =((D19-$S$19)/$U$19)-((D20-$S$20)/$U$20) -> -0.9215301891 | E21: -0.5073569336 | F21: 0.3536811007 | G21: 1.901400256 | H21: -0.703576091 | I21: -1.085057823 | J21: -0.131353493 | K21: 1.12644693 | L21: 1.630007144 | M21: 0.5651427233 | N21: -1.022891734 | O21: http://agron-www.agron.iastate.edu/courses/Agron541/classes/541/lesson04a/4a.3.html
B22: =IF(P12=0,"Critical Geophysical Parameters NOT IDEAL for SPIS","Proceed to INPUT_Weight Setting") -> Proceed to INPUT_Weight Setting
F28: No recomendable
F29: Marginalmente apto
F30: Moderadamente apto
F31: Muy apto

Sheet ENTRADA_Ajuste de valoración
D2: ENTRADA - Ajuste de Valoración
B6: Parámetros Geofísicos:
B7: Parámetros Geofísicos no críticos
B8: Parámetros adicionales que son clave para la evaluación del mercado para SPIS. Estos no afectan la viabilidad general de SPIS; afectan el éxito de la adopción de SPIS en una región según las condiciones geofísicas prevalecientes (por ejemplo, nivel freático, presencia de heladas, topografía, sistema agrícola de producción agrícola, etc.).
B9: Inconsequential
B10: =H40 -> 0.05555555556
B12: Condiciones de Negocio:
B13: 1. Intervenciones del gobierno | D13: 2. Intervenciones de organizaciones de desarrollo | F13: 3. Financiación
B14: Evaluación de las intervenciones del gobierno como un parámetro del entorno empresarial para SPIS, analizando las políticas, normas y reglamentos que gobiernan los sectores del riego y la energía solar. | D14: Esta sección evalúa las intervenciones de las organizaciones de desarrollo que pueden influir de manera significativa en la adopción de SPIS dentro de un país o región. | F14: El parámetro analiza la capacidad de los usuarios finales para cubrir el alto costo de capital de SPIS, incluyendo el apoyo financiero del gobierno, las agencias de desarrollo y el sector privado.
B15: Inconsequential | D15: Important | F15: Important
B16: =H31 -> 0.05555555556 | D16: =H32 -> 0.1666666667 | F16: =H33 -> 0.1666666667
B18: 4. Disponibilidad y Costo de Alternativas | D18: 5. Capacidad Técnica | F18: 6. Conocimiento de las Tecnologías SPIS
B19: Considera la disponibilidad y el costo de las fuentes de energía competidoras para los sistemas de riego. | D19: Esta sección evalúa la capacidad del personal en el país para diseñar, implementar y mantener sistemas SPIS. | F19: Evalúa la conciencia general de las tecnologías solares en el país, como la iluminación solar y los sistemas de calefacción, y los sistemas de riego (bombas solares).
B20: Important | D20: Critical | F20: Ignore
B21: =H34 -> 0.1666666667 | D21: =H35 -> 0.2777777778 | F21: =H36 -> 0
B23: 7. Importancia de la Agricultura para la Economía Local | D23: 8. Tenencia de la Tierra | F23: 9. Infraestructura de transporte y comunicación
B24: Esta sección evalúa la importancia del sector agrícola para la economía del área a evaluar, determinando su contribución al PIB y al empleo junto con la proporción de tierra cultivable utilizada para la agricultura. | D24: Este parámetro busca una comprensión de los derechos de tenencia de la tierra que pueden obstaculizar o promover la adopción de SPIS. Los derechos de tenencia no solo determinan la seguridad de la inversión, sino también pueden servir como garantía para los préstamos. | F24: Esta sección evalúa la disponibilidad de infraestructura y sistemas de comunicación, como carreteras y redes móviles, para habilitar las cadenas de suministro y facilitar el movimiento de personas y bienes.
B25: Slightly important | D25: Ignore | F25: Ignore
B26: =H37 -> 0.1111111111 | D26: =H38 -> 0 | F26: =H39 -> 0
F30: Parámetro | G30: Ajuste de valoración | H30: Porcentaje | I30: Puntuación
F31: Intervenciones del gobierno | G31: =B15 -> Inconsequential | H31: =I31/$I$41 -> 0.05555555556 | I31: =IF(B15="Inconsequential",2,IF(B15="Slightly important",4,IF(B15="Important",6,IF(B15="Very Important",8,IF(B15="Critical",10))))) -> 2
F32: Intervenciones de organizaciones de desarrollo | G32: =D15 -> Important | H32: =I32/$I$41 -> 0.1666666667 | I32: =IF(D15="Inconsequential",2,IF(D15="Slightly important",4,IF(D15="Important",6,IF(D15="Very Important",8,IF(D15="Critical",10))))) -> 6
F33: Financiación | G33: =F15 -> Important | H33: =I33/$I$41 -> 0.1666666667 | I33: =IF(F15="Inconsequential",2,IF(F15="Slightly important",4,IF(F15="Important",6,IF(F15="Very Important",8,IF(F15="Critical",10))))) -> 6
F34: Disponibilidad y Costo de Alternativas | G34: =B20 -> Important | H34: 0.1666666667 | I34: =IF(B20="Inconsequential",2,IF(B20="Slightly important",4,IF(B20="Important",6,IF(B20="Very Important",8,IF(B20="Critical",10))))) -> 6
F35: Capacidad Técnica | G35: =D20 -> Critical | H35: 0.2777777778 | I35: =IF(D20="Inconsequential",2,IF(D20="Slightly important",4,IF(D20="Important",6,IF(D20="Very Important",8,IF(D20="Critical",10))))) -> 10
F36: Conocimiento de las Tecnologías SPIS | G36: =F20 -> Ignore | H36: 0 | I36: =IF(F20="Inconsequential",2,IF(F20="Slightly important",4,IF(F20="Important",6,IF(F20="Very Important",8,IF(F20="Critical",10))))) -> FALSE
F37: Importancia de la Agricultura para la Economía Local | G37: =B25 -> Slightly important | H37: 0.1111111111 | I37: =IF(B25="Inconsequential",2,IF(B25="Slightly important",4,IF(B25="Important",6,IF(B25="Very Important",8,IF(B25="Critical",10))))) -> 4
F38: Tenencia de la Tierra | G38: =D25 -> Ignore | H38: 0 | I38: =IF(D25="Inconsequential",2,IF(D25="Slightly important",4,IF(D25="Important",6,IF(D25="Very Important",8,IF(D25="Critical",10))))) -> FALSE
F39: Infraestructura de transporte y comunicación | G39: =F25 -> Ignore | H39: 0 | I39: =IF(F25="Inconsequential",2,IF(F25="Slightly important",4,IF(F25="Important",6,IF(F25="Very Important",8,IF(F25="Critical",10))))) -> FALSE
F40: Parámetros Geofísicos no críticos | G40: =B9 -> Inconsequential | H40: 0.05555555556 | I40: =IF(B9="Inconsequential",2,IF(B9="Slightly important",4,IF(B9="Important",6,IF(B9="Very Important",8,IF(B9="Critical",10))))) -> 2
F41: Total | G41: =SUM(G31:G40) -> 0 | H41: =SUM(H31:H40) -> 1 | I41: =SUM(I31:I40) -> 36

Sheet ENTRADA_Parámetros Geofísicos
C2: ENTRADA - Parámetros Geofísicos
A5: 2 | B5: Parámetros Geofísicos Adicionales | E5: Puntuación más alta posible | F5: Puntuación alcanzada
E6: ='ENTRADA_Ajuste de valoración'!B10 -> 0.05555555556 | F6: =SUM(I8:I11) -> 0.05138888889
B7: Preguntas | C7: Fuente de datos de muestra | E7: Respuesta | F7: Relevancia | H7: Weight | I7: Attained Score | J7: Raw Score
A8: a) | B8: ="¿Cuál es el nivel freático promedio establecido para SPIS?" -> ¿Cuál es el nivel freático promedio establecido para SPIS? | C8: Profundidad estimada de los recursos de aguas subterráneas | E8: Up to 7m | F8: Inconsequential | H8: =E6/COUNTA(B8,B9,B10,B11) -> 0.01388888889 | I8: =(J8*H8) -> 0.01388888889 | J8: =IF(E8="Up to 7m",1,IF(E8="7m - 25m",0.8,IF(E8="25m - 50m",0.6,IF(E8="50m - 100m",0.1,IF(E8="Beyond 100m",0,IF(E8="Unknown",0))))))*IF(F8="Inconsequential",6,IF(F8="Slightly important",5,IF(F8="Important",4,IF(F8="Very important",3,IF(F8="Critical",2)))))/6 -> 1
A9: b) | B9: ="¿Cuál es la temperatura ambiente anual mínima en relación con la frecuencia de heladas?" -> ¿Cuál es la temperatura ambiente anual mínima en relación con la frecuencia de heladas? | C9: Datos de temperatura global del Banco Mundial | E9: 1C to 30C | F9: Inconsequential | H9: =(E6/COUNTA(B8,B9,B10,B11)) -> 0.01388888889 | I9: =(J9*H9) -> 0.01388888889 | J9: =IF(E9="1C to 30C",(IF(F9="Inconsequential",6,IF(F9="Slightly important",5,IF(F9="Important",4,IF(F9="Very important",3,IF(F9="Critical",2)))))),(IF(F9="Inconsequential",6,IF(F9="Slightly important",4,IF(F9="Important",2,IF(F9="Very important",1,IF(F9="Critical",0)))))))/6 -> 1
A10: c) | B10: ="¿Cómo se considera la topografía general del área?" -> ¿Cómo se considera la topografía general del área? | C10: ¿Cuál es la pendiente del área? | E10: Flat | F10: Inconsequential | H10: =(E6/COUNTA(B8,B9,B10,B11)) -> 0.01388888889 | I10: =(J10*H10) -> 0.01388888889 | J10: =IF(E10="Flat",1,IF(E10="Moderate",0.8,IF(E10="Steep",0.6)))*IF(F10="Inconsequential",6,IF(F10="Slightly important",5,IF(F10="Important",4,IF(F10="Very important",3,IF(F10="Critical",2)))))/6 -> 1
A11: d) | B11: ="¿Cuál es el principal tipo de producción en el sistema agrícola del área?" -> ¿Cuál es el principal tipo de producción en el sistema agrícola del área? | C11: Mapas de Sistemas de Agricultura FAO | E11: Livestock and Crops | F11: Inconsequential | H11: =(E6/COUNTA(B8,B9,B10,B11)) -> 0.01388888889 | I11: =(J11*H11) -> 0.009722222222 | J11: =IF(E11="Seasonal Crops",0.6,IF(E11="Perennial Crops",0.8,IF(E11="Small Livestock",1,IF(E11="Large Livestock",0.9,IF(E11="Seasonal and Perennial Crops",0.7,IF(E11="Livestock and Crops",0.7))))))*IF(F11="Inconsequential",6,IF(F11="Slightly important",5,IF(F11="Important",4,IF(F11="Very important",3,IF(F11="Critical",2)))))/6 -> 0.7
B12: =IF((Calculations!G4)<(50 %), "Your score is below 50 % of your initial values for Geophysical Parameters! Please revise your weight setting!", "") -> 
C14: ¿Conoce fuentes de datos más recientes?
C15: POR FAVOR COMPARTA
C16: y ayúdenos a mejorar nuestras herramientas.
C17: Gracias

Sheet ENTRADA_Condiciones de Mercado
C2: ENTRADA - Condiciones de Mercado
A5: 1 | B5: Intervenciones Gubernamentales | E5: Puntuación máx. posible | F5: Puntuación alcanzada
E6: ='ENTRADA_Ajuste de valoración'!B16 -> 0.05555555556 | F6: =IF(OR(AND(E8="No",F8="Critical"),AND(E11="No",F11="Critical"),AND(E12="No",F12="Critical")),0,SUM(I8:I12)) -> 0.05555555556
B7: Preguntas | C7: Fuentes de datos de muestra | E7: Respuesta | F7: Relevancia | H7: Weight | I7: Attained score | J7: Raw Score
A8: a) | B8: ="¿El gobierno, las políticas y leyes nacionales y locales fomentan el uso de equipos de riego solar?" -> ¿El gobierno, las políticas y leyes nacionales y locales fomentan el uso de equipos de riego solar? | C8: • Políticas de riego y / o energía solar, leyes, planes de desarrollo del sector • Licencias de técnicos en energía solar, proveedores y / o empresas contratistas • Regulación fiscal del gobierno como exenciones de impuestos y aranceles | D8: Políticas de desarrollo de energía limpia | E8: Yes | F8: Inconsequential | H8: =E6/COUNTA(B8:B12) -> 0.01851851852 | I8: =(J8*H8) -> 0.01851851852 | J8: =(IF(E8="Yes",(IF(F8="Inconsequential",6,IF(F8="Slightly important",5,IF(F8="Important",4,IF(F8="Very important",3,IF(F8="Critical",2)))))),(IF(F8="Inconsequential",3,IF(F8="Slightly important",2,IF(F8="Important",1,IF(F8="Very important",1,IF(F8="Critical",0))))))))/6 -> 1
D9: Políticas de apoyo a las energías renovables en los países en desarrollo: tabla 4, pág. 121
D10: Documentos de política de países de Asia-Pacífico
A11: b) | B11: ="¿Hay programas gubernamentales que fomenten el uso de dispositivos SPIS?" -> ¿Hay programas gubernamentales que fomenten el uso de dispositivos SPIS? | C11: • Programas de riego y energía solar apoyados por recursos del gobierno | E11: Yes | F11: Inconsequential | H11: =E6/COUNTA(B8:B12) -> 0.01851851852 | I11: =(J11*H11) -> 0.01851851852 | J11: =(IF(E11="Yes",(IF(F11="Inconsequential",6,IF(F11="Slightly important",5,IF(F11="Important",4,IF(F11="Very important",3,IF(F11="Critical",2)))))),(IF(F11="Inconsequential",3,IF(F11="Slightly important",2,IF(F11="Important",1,IF(F11="Very important",1,IF(F11="Critical",0))))))))/6 -> 1
A12: c) | B12: ="¿Existen ministerios y instituciones relevantes del gobierno que brinden apoyo al sector?" -> ¿Existen ministerios y instituciones relevantes del gobierno que brinden apoyo al sector? | C12: • Ministerios de agricultura y energía con participación en el sector SPIS • Organizaciones gubernamentales de riego, juntas, grupos • Organizaciones gubernamentales que brindan información relacionada con SPIS • Regulación y cumplimiento de normas gubernamentales de calidad y estándares | D12: Regulaciones e incentivos de sistemas aislados | E12: Yes | F12: Inconsequential | H12: =E6/COUNTA(B8:B12) -> 0.01851851852 | I12: =(J12*H12) -> 0.01851851852 | J12: =(IF(E12="Yes",(IF(F12="Inconsequential",6,IF(F12="Slightly important",5,IF(F12="Important",4,IF(F12="Very important",3,IF(F12="Critical",2)))))),(IF(F12="Inconsequential",3,IF(F12="Slightly important",2,IF(F12="Important",1,IF(F12="Very important",1,IF(F12="Critical",0))))))))/6 -> 1
A14: 2 | B14: Intervenciones de Organizaciones de Desarrollo | E14: Puntuación máx. posible | F14: Puntuación alcanzada
E15: ='ENTRADA_Ajuste de valoración'!D16 -> 0.1666666667 | F15: =IF(OR(AND(E17="No",F17="Critical"),AND(E18="No",F18="Critical")),0,SUM(I17:I20)) -> 0.1666666667
B16: Preguntas | C16: Fuentes de datos de muestra | E16: Respuesta | F16: Relevancia | H16: Weight | I16: Attained score | J16: Raw Score
A17: a) | B17: ="¿Existen programas nacionales ofrecidos por instituciones no gubernamentales que promuevan la adopción del riego?" -> ¿Existen programas nacionales ofrecidos por instituciones no gubernamentales que promuevan la adopción del riego? | C17: • Lista de posibles * agencias de desarrollo y organizaciones multilaterales: | D17: GIZ (Deutsche Gesellschaft für Internationale Zusammenarbeit GmbH) | E17: Yes | F17: Inconsequential | H17: =E15/(COUNTA(B17:B20)) -> 0.08333333333 | I17: =(J17*H17) -> 0.08333333333 | J17: =(IF(E17="Yes",(IF(F17="Inconsequential",6,IF(F17="Slightly important",5,IF(F17="Important",4,IF(F17="Very important",3,IF(F17="Critical",2)))))),(IF(F17="Inconsequential",3,IF(F17="Slightly important",2,IF(F17="Important",1,IF(F17="Very important",1,IF(F17="Critical",0))))))))/6 -> 1
A18: b) | B18: ="¿Existen programas nacionales ofrecidos por instituciones no gubernamentales que promuevan específicamente la adopción de dispositivos SPIS?" -> ¿Existen programas nacionales ofrecidos por instituciones no gubernamentales que promuevan específicamente la adopción de dispositivos SPIS? | C18: • Lista de posibles servicios y fondos: | D18: GEF (Global Environment Facility) | E18: Yes | F18: Inconsequential | H18: =E15/COUNTA(B17:B20) -> 0.08333333333 | I18: =(J18*H18) -> 0.08333333333 | J18: =(IF(E18="Yes",(IF(F18="Inconsequential",6,IF(F18="Slightly important",5,IF(F18="Important",4,IF(F18="Very important",3,IF(F18="Critical",2)))))),(IF(F18="Inconsequential",3,IF(F18="Slightly important",2,IF(F18="Important",1,IF(F18="Very important",1,IF(F18="Critical",0))))))))/6 -> 1
C19: • Lista de posibles * centros de investigación y otras ONG: | D19: AGRA
C20: * Lista no exhaustiva
A22: 3 | B22: Financiación | E22: Puntuación máx. posible | F22: Puntuación alcanzada
E23: ='ENTRADA_Ajuste de valoración'!F16 -> 0.1666666667 | F23: =IF(OR(AND(E26=1,F26="Critical"),AND(E33="No",F33="Critical"), AND(E29=0,F29="Critical"), AND(E30=0,F30="Critical")),0,SUM(I25,I28,I33)) -> 0.1666666667
B24: Preguntas | C24: Fuentes de datos de muestra | E24: Respuesta | F24: Relevancia | H24: Weight | I24: Attained score | J24: Raw Score
A25: a) | B25: Capacidad financiera de los usuarios finales | H25: =E23/COUNTA(B25,B28,B33) -> 0.05555555556 | I25: =I26+I27 -> 0.05555555556
A26: i) | B26: ="¿Qué proporción de la población rural es pobre según el índice de pobreza multidimensional?" -> ¿Qué proporción de la población rural es pobre según el índice de pobreza multidimensional? | C26: OPHI Global MPI Interactive Databank: Population in multidimensional poverty (H) (%), Rural MPI Poor | E26: 0.2 | F26: Inconsequential | H26: =H25/COUNTA(B26:B27) -> 0.02777777778 | I26: =(H26*J26) -> 0.02777777778 | J26: =IF(F26="Inconsequential",1,(1-E26)) -> 1
A27: ii) | B27: ="¿Cuál es el valor del INB per cápita?" -> ¿Cuál es el valor del INB per cápita? | C27: World Bank data: GNI per capita, Atlas method (current US$) 2016 | E27: Low income ($1,005 or less) | F27: Inconsequential | H27: =H25/COUNTA(B26:B27) -> 0.02777777778 | I27: =(H27*J27) -> 0.02777777778 | J27: =(IF(F27="Inconsequential",5,IF(E27="Low income ($1,005 or less)",1,IF(E27="Lower Middle Income ($1,006 to $3,955)",2,IF(E27="Upper Middle Income ($3,956 to $12,235)",4,IF(E27="High Income ($12.236 or more)",5,))))))/(5) -> 1
A28: b) | B28: Disponibilidad de apoyo de instituciones financieras | H28: =E23/COUNTA(B25,B28,B33) -> 0.05555555556 | I28: =I29+I30+I32 -> 0.05555555556
A29: i) | B29: ="¿Qué proporción de la población mayor de 15 años posee una cuenta bancaria? " -> ¿Qué proporción de la población mayor de 15 años posee una cuenta bancaria? | C29: i) Cuenta (% de más de 15 años) según el país ii) Préstamo formal (% de más de 15 años) según el país | D29: World Bank, Financial Inclusion Data | E29: 0.3 | F29: Inconsequential | H29: =H28/COUNTA(B29:B30,B32) -> 0.01851851852 | I29: =H29*J29 -> 0.01851851852 | J29: =IF(F29="Inconsequential",1,E29) -> 1
A30: ii) | B30: ="¿Cuál es la proporción de la población mayor de 15 años que pidió un préstamo de una institución bancaria en el año dado *?" -> ¿Cuál es la proporción de la población mayor de 15 años que pidió un préstamo de una institución bancaria en el año dado *? | E30: 0.2 | F30: Inconsequential | H30: =H28/COUNTA(B29:B30,B32) -> 0.01851851852 | I30: =H30*J30 -> 0.01851851852 | J30: =IF(F30="Inconsequential",1,E30) -> 1
B31: * año dado: aquel con los datos disponibles más recientes
A32: iii) | B32: ="¿Cuál es la facilidad para obtener clasificación de crédito en el país de interés?" -> ¿Cuál es la facilidad para obtener clasificación de crédito en el país de interés? | C32: Clasificación de crédito 2017 | E32: 77 | F32: Inconsequential | H32: =H28/COUNTA(B29:B30,B32) -> 0.01851851852 | I32: =(H32*J32) -> 0.01851851852 | J32: =(IF(F32="Inconsequential",186,(186-E32)))/186 -> 1
A33: c) | B33: ="¿Hay algún incentivo económico del gobierno que afecte la adopción de dispositivos SPIS?" -> ¿Hay algún incentivo económico del gobierno que afecte la adopción de dispositivos SPIS? | C33: • Exenciones de impuestos gubernamentales, subsidios, reembolsos, créditos, etc. otorgados a clientes de productos SPIS, proveedores u otros intermediarios tales como financieros | E33: Yes | F33: Inconsequential | H33: =E23/COUNTA(B25,B28,B33) -> 0.05555555556 | I33: =H33*J33 -> 0.05555555556 | J33: =(IF(E33="Yes",(IF(F33="Inconsequential",6,IF(F33="Slightly important",5,IF(F33="Important",4,IF(F33="Very important",3,IF(F33="Critical",2)))))),(IF(F33="Inconsequential",3,IF(F33="Slightly important",2,IF(F33="Important",1,IF(F33="Very important",1,IF(F33="Critical",0))))))))/6 -> 1
A35: 4 | B35: Disponibilidad y costo de alternativas fuentes de energía para el bombeo | E35: Puntuación máx. posible | F35: Puntuación alcanzada
E36: ='ENTRADA_Ajuste de valoración'!B21 -> 0.1666666667 | F36: =IF(OR(AND(E39="Yes",F39="Critical"),AND(E40="Yes",F40="Critical"),AND(E47="Yes",F47="Critical"),AND(E48="Yes",F48="Critical")),0,SUM(I38,I46,I49)) -> 0.1111111111
B37: Preguntas | C37: Muestra de fuentes de datos locales | D37: Muestra de fuentes de datos nacionales | E37: Respuesta | F37: Relevancia | H37: Weight | I37: Attained score | J37: Raw Score
A38: a) | B38: Disponibilidad de fuentes alternativas competitivas de energía | H38: =E36/COUNTA(B38,B46,B49) -> 0.05555555556 | I38: =I39+I40+I45 -> 0.05555555556
A39: i) | B39: ="¿Tiene el país recursos de combustibles fósiles que explota?" -> ¿Tiene el país recursos de combustibles fósiles que explota? | C39: Reservas nacionales de combustibles fósiles | E39: No | F39: Inconsequential | H39: =H38/(COUNTA(B39:B45)-1) -> 0.02777777778 | I39: =H39*J39 -> 0.02777777778 | J39: =IF(E39="No",IF(F39="Inconsequential",1,IF(F39="Important",0.5)),0) -> 1
A40: ii) | B40: ="¿El área de interés está muy cerca (a menos de 5 km de un punto de acceso a la red) de la red o la tasa de electrificación rural del país es mayor al 80 %?" -> ¿El área de interés está muy cerca (a menos de 5 km de un punto de acceso a la red) de la red o la tasa de electrificación rural del país es mayor al 80 %? | C40: Red africana | D40: Acceso a la electricidad, tasa de electrificación rural | E40: No | F40: Inconsequential | H40: =H38/((COUNTA(B39:B45)-1)*2) -> 0.01388888889 | I40: =H40*J40 -> 0.01388888889 | J40: =IF(E40="No",IF(F40="Inconsequential",1,IF(F40="Important",0.5)),0) -> 1
C41: Red europea
C42: Red estadounidense | D42: Seguimiento de SDG 7
C43: Red australiana | D43: Mapa de redes
C44: Para una mayor precisión, utilice datos específicos del país
A45: iii) | B45: ="¿Cuál es la frecuencia de caídas de corriente en el área de interés?" -> ¿Cuál es la frecuencia de caídas de corriente en el área de interés? | C45: • Fiabilidad local del suministro de electricidad en el área de interés | D45: Frecuencia de caídas de corriente | E45: Low | F45: Inconsequential | H45: =H38/((COUNTA(B39:B45)-1)*2) -> 0.01388888889 | I45: =H45*J45 -> 0.01388888889 | J45: =(IF(F45="Inconsequential",5,IF(E45="Low",1,IF(E45="Regular",2,IF(E45="High",4,IF(E45="Very high",5,))))))/5 -> 1
A46: b) | B46: Subsidios | H46: =E36/COUNTA(B38,B46,B49) -> 0.05555555556 | I46: =I47+I48 -> 0.05555555556
A47: i) | B47: ="¿Existe un subsidio a la red en el área de interés, incluyendo el costo de la electricidad y / o la tarifa de conexión a la red?" -> ¿Existe un subsidio a la red en el área de interés, incluyendo el costo de la electricidad y / o la tarifa de conexión a la red? | C47: • Área de interés regulación de suministro de electricidad local | D47: Subsidio nacional de electricidad | E47: No | F47: Inconsequential | H47: =H38/COUNTA(B47:B48) -> 0.02777777778 | I47: =H47*J47 -> 0.02777777778 | J47: =IF(E47="No",IF(F47="Inconsequential",1,IF(F47="Important",0.5)),0) -> 1
A48: ii) | B48: ="¿Existe un subsidio al combustible en el área de interés? " -> ¿Existe un subsidio al combustible en el área de interés? | C48: • Área de interés regulación de suministro de combustible local | D48: Subsidio nacional al combustible | E48: No | F48: Inconsequential | H48: =H38/COUNTA(B47:B48) -> 0.02777777778 | I48: =H48*J48 -> 0.02777777778 | J48: =IF(E48="No",IF(F48="Inconsequential",1,IF(F48="Important",0.5)),0) -> 1
A49: c) | B49: Comparación de costos | H49: =E36/COUNTA(B38,B46,B49) -> 0.05555555556 | I49: =I50+I51 -> 0
A50: i) | B50: ="¿Cuál es la tarifa minorista de electricidad promedio en USD por kWh para todos los usuarios finales en el área de interés?" -> ¿Cuál es la tarifa minorista de electricidad promedio en USD por kWh para todos los usuarios finales en el área de interés? | C50: • Costo del suministro local de electricidad en USD por kWh en área de interés | D50: Tarifa de electricidad minorista (promedio de todos los usuarios finales) en USD / kWh | F50: La referencia para una penalización mínima será de 1 USD / kWh, con la potencia más cara, redondeada al siguiente número entero (0,61) | H50: =H49/COUNTA(B50:B51) -> 0.02777777778 | I50: =H50*J50 -> 0 | J50: =E50 -> 0
A51: ii) | B51: ="¿Cuál es el precio promedio de venta al público de diésel en USD por litro en el área de interés?" -> ¿Cuál es el precio promedio de venta al público de diésel en USD por litro en el área de interés? | C51: • Costo promedio local de diesel en USD por litro en área de interés | D51: Precios de diesel USD / litro | F51: La referencia para la multa mínima será de 3 USD / litro el precio de Islandia, con el diésel más caro, redondeado al siguiente número entero (2.03) | H51: =H49/COUNTA(B50:B51) -> 0.02777777778 | I51: =H51*J51 -> 0 | J51: =E51/3 -> 0
A53: 5 | B53: Capacidad técnica por SPIS | E53: Puntuación máx. posible | F53: Puntuación alcanzada
E54: ='ENTRADA_Ajuste de valoración'!D21 -> 0.2777777778 | F54: =IF(OR(AND(E56="No",F56="Critical"),AND(E57="No",F57="Critical"),AND(E58="No",F58="Critical")),0,SUM(I56:I58)) -> 0.2314814815
B55: Preguntas | C55: Fuentes de datos nacionales de muestra | E55: Respuesta | F55: Relevancia | H55: Weight | I55: Attained score | J55: Raw Score
A56: a) | B56: ="¿Hay sesiones de capacitación sobre tecnologías y aplicaciones solares (Diseño, operación, mantenimiento y reparaciones) disponibles en el área de interés?" -> ¿Hay sesiones de capacitación sobre tecnologías y aplicaciones solares (Diseño, operación, mantenimiento y reparaciones) disponibles en el área de interés? | C56: ="• Cursos de sistemas y tecnologías solares en instituciones educativas en el área de interés." -> • Cursos de sistemas y tecnologías solares en instituciones educativas en el área de interés. | E56: No | F56: Inconsequential | H56: =E54/COUNTA(B56:B58) -> 0.09259259259 | I56: =(J56*H56) -> 0.0462962963 | J56: =(IF(E56="Yes",(IF(F56="Inconsequential",6,IF(F56="Slightly important",5,IF(F56="Important",4,IF(F56="Very important",3,IF(F56="Critical",2)))))),(IF(F56="Inconsequential",3,IF(F56="Slightly important",2,IF(F56="Important",1,IF(F56="Very important",1,IF(F56="Critical",0))))))))/6 -> 0.5
A57: b) | B57: ="¿Los técnicos de energía solar en el área de interés tienen licencia para llevar a cabo su trabajo por parte del gobierno?" -> ¿Los técnicos de energía solar en el área de interés tienen licencia para llevar a cabo su trabajo por parte del gobierno? | C57: • Reglamento gubernamental sobre licencias de técnicos de energía solar. | E57: Yes | F57: Inconsequential | H57: =E54/COUNTA(B56:B58) -> 0.09259259259 | I57: =(J57*H57) -> 0.09259259259 | J57: =(IF(E57="Yes",(IF(F57="Inconsequential",6,IF(F57="Slightly important",5,IF(F57="Important",4,IF(F57="Very important",3,IF(F57="Critical",2)))))),(IF(F57="Inconsequential",3,IF(F57="Slightly important",2,IF(F57="Important",1,IF(F57="Very important",1,IF(F57="Critical",0))))))))/6 -> 1
A58: c) | B58: ¿La tecnología solar forma parte del currículo en cursos o programas agrícolas en instituciones de capacitación agrícola? | C58: ="• Cursos de sistemas y tecnologías solares en instituciones educativas en el área de interés." -> • Cursos de sistemas y tecnologías solares en instituciones educativas en el área de interés. | E58: Yes | F58: Inconsequential | H58: =E54/COUNTA(B56:B58) -> 0.09259259259 | I58: =(J58*H58) -> 0.09259259259 | J58: =(IF(E58="Yes",(IF(F58="Inconsequential",6,IF(F58="Slightly important",5,IF(F58="Important",4,IF(F58="Very important",3,IF(F58="Critical",2)))))),(IF(F58="Inconsequential",3,IF(F58="Slightly important",2,IF(F58="Important",1,IF(F58="Very important",1,IF(F58="Critical",0))))))))/6 -> 1
A60: 6 | B60: Conocimiento de tecnologías de SPIS y de riego | E60: Puntuación máx. posible | F60: Puntuación alcanzada
E61: ='ENTRADA_Ajuste de valoración'!F21 -> 0 | F61: =IF(OR(AND(E64="No",F64="Critical"),AND(E68="No",F68="Critical"),AND(E65="No",F65="Critical"),AND(E69=0,F69="Critical")),0,SUM(I63,I67,)) -> 0
B62: Preguntas | C62: Fuentes de datos nacionales de muestra | E62: Repuesta | F62: Relevancia | H62: Weight | I62: Attained score | J62: Raw Score
A63: a) | B63: Solar | H63: =E61/COUNTA(B63,B67) -> 0 | I63: =I64+I65+I66 -> 0
A64: i) | B64: ="¿Ha habido un aumento cumulativo en la capacidad instalada de energía solar entre los años 2012 - 2016 en el área de interés?" -> ¿Ha habido un aumento cumulativo en la capacidad instalada de energía solar entre los años 2012 - 2016 en el área de interés? | C64: IRENA dashboard: Tendencias en Energías Renovables | E64: Yes | F64: Inconsequential | H64: =H63/COUNTA(B64:B66) -> 0 | I64: =(J64*H64) -> 0 | J64: =(IF(E64="Yes",(IF(F64="Inconsequential",6,IF(F64="Slightly important",5,IF(F64="Important",4,IF(F64="Very important",3,IF(F64="Critical",2)))))),(IF(F64="Inconsequential",3,IF(F64="Slightly important",2,IF(F64="Important",1,IF(F64="Very important",1,IF(F64="Critical",0))))))))/6 -> 1
A65: ii) | B65: ="¿Hay un aumento general en la energía solar adicional neta anual instalada entre los años 2012 - 2016 en el área de interés?" -> ¿Hay un aumento general en la energía solar adicional neta anual instalada entre los años 2012 - 2016 en el área de interés? | E65: Yes | F65: Inconsequential | H65: =H63/COUNTA(B64:B66) -> 0 | I65: =(J65*H65) -> 0 | J65: =(IF(E65="Yes",(IF(F65="Inconsequential",6,IF(F65="Slightly important",5,IF(F65="Important",4,IF(F65="Very important",3,IF(F65="Critical",2)))))),(IF(F65="Inconsequential",3,IF(F65="Slightly important",2,IF(F65="Important",1,IF(F65="Very important",1,IF(F65="Critical",0))))))))/6 -> 1
A66: iii) | B66: ¿Cuál es la proporción de energía solar de la capacidad total de energía instalada? | E66: 0.05 | F66: Important | H66: =H63/COUNTA(B64:B66) -> 0 | I66: =(J66*H66) -> 0 | J66: =IF(F66="Inconsequential",0.5,E66) -> 0.05
A67: b) | B67: Redes de distribución para sistemas solares y de riego | H67: =E61/COUNTA(B63,B67) -> 0 | I67: =I68+I69 -> 0
A68: i) | B68: ="¿Existen proveedores y / o distribuidores de productos de bombeo de agua de fabricantes internacionales en el mercado del área de interés? " -> ¿Existen proveedores y / o distribuidores de productos de bombeo de agua de fabricantes internacionales en el mercado del área de interés? | C68: • Lista de los principales productos y proveedores de bombas de agua | D68: Ebara | E68: Yes | F68: Inconsequential | H68: =H67/COUNTA(B68:B69) -> 0 | I68: =(J68*H68) -> 0 | J68: =(IF(E68="Yes",(IF(F68="Inconsequential",6,IF(F68="Slightly important",5,IF(F68="Important",4,IF(F68="Very important",3,IF(F68="Critical",2)))))),(IF(F68="Inconsequential",3,IF(F68="Slightly important",2,IF(F68="Important",1,IF(F68="Very important",1,IF(F68="Critical",0))))))))/6 -> 1
A69: ii) | B69: ="¿Existen proveedores y / o distribuidores de sistemas solares de fabricantes globales en el mercado del área de interés? " -> ¿Existen proveedores y / o distribuidores de sistemas solares de fabricantes globales en el mercado del área de interés? | C69: • Lista de los principales productos y proveedores de energía solar fotovoltaica | D69: Ebara | E69: Yes | F69: Inconsequential | H69: =H67/COUNTA(B68:B69) -> 0 | I69: =(J69*H69) -> 0 | J69: =(IF(E69="Yes",(IF(F69="Inconsequential",6,IF(F69="Slightly important",5,IF(F69="Important",4,IF(F69="Very important",3,IF(F69="Critical",2)))))),(IF(F69="Inconsequential",3,IF(F69="Slightly important",2,IF(F69="Important",1,IF(F69="Very important",1,IF(F69="Critical",0))))))))/6 -> 1
A71: 7 | B71: Importancia de la agricultura para la economía local | E71: Puntuación máx. posible | F71: Puntuación alcanzada
E72: ='ENTRADA_Ajuste de valoración'!B26 -> 0.1111111111 | F72: =IF(OR(AND(E74=0,F74="Critical"),AND(E76=0,F76="Critical"),AND(E77=0,F77="Critical")),0,SUM(I74:I78)) -> 0.05555555556
B73: Preguntas | C73: Fuentes de datos nacionales de muestra | E73: Respuesta | F73: Relevancia | H73: Weight | I73: Attained score | J73: Raw Score
A74: a) | B74: ="¿Qué proporción de la población empleada trabaja en el sector agrícola?" -> ¿Qué proporción de la población empleada trabaja en el sector agrícola? | C74: Empleo en Agricultura (% del empleo total, indicadores por país en 2017, año más reciente) (Banco Mundial) | F74: Inconsequential | H74: =E72/COUNTA(B74:B78) -> 0.02222222222 | I74: =(J74*H74) -> 0.01111111111 | J74: =IF(F74="Inconsequential",0.5,E74) -> 0.5
A75: b) | B75: ="¿Qué proporción de la población es rural?" -> ¿Qué proporción de la población es rural? | C75: Población rural (% de la población total en 2016) (Banco Mundial) | F75: Inconsequential | H75: =E72/COUNTA(B74:B78) -> 0.02222222222 | I75: =(J75*H75) -> 0.01111111111 | J75: =IF(F75="Inconsequential",0.5,E75) -> 0.5
A76: c) | B76: ="¿Qué proporción del PIB del área de interés es de origen agrícola? " -> ¿Qué proporción del PIB del área de interés es de origen agrícola? | C76: Agricultura, valor agregado (% del PIB, Indicadores por país en 2016, año más reciente) (Banco Mundial) | F76: Inconsequential | H76: =E72/COUNTA(B74:B78) -> 0.02222222222 | I76: =(J76*H76) -> 0.01111111111 | J76: =IF(F76="Inconsequential",0.5,E76) -> 0.5
A77: e) | B77: ="¿Qué proporción de la tierra total es tierra agrícola?" -> ¿Qué proporción de la tierra total es tierra agrícola? | C77: Tierra agrícola (% del área de tierra, Indicadores por país en 2015, año más reciente) (Banco Mundial) | F77: Inconsequential | H77: =E72/COUNTA(B74:B78) -> 0.02222222222 | I77: =(J77*H77) -> 0.01111111111 | J77: =IF(F77="Inconsequential",0.5,E77) -> 0.5
A78: d) | B78: ="¿Qué porcentaje de las tierras cultivadas es de regadío?" -> ¿Qué porcentaje de las tierras cultivadas es de regadío? | C78: Área cultivada en regadío (% del área total cultivada) (FAO, mapa Aquastat) | F78: Inconsequential | H78: =E72/COUNTA(B74:B78) -> 0.02222222222 | I78: =(J78*H78) -> 0.01111111111 | J78: =IF(F78="Inconsequential",0.5,E78)+IF(E78>E77,"0,25","0") -> 0.5
A80: 8 | B80: Derechos de uso del suelo, propiedad y tenencia | E80: Puntuación máx. posible | F80: Puntuación alcanzada
E81: ='ENTRADA_Ajuste de valoración'!D26 -> 0 | F81: =SUM(I83:I87) -> 0
B82: Preguntas | C82: Fuentes de datos nacionales de muestra | E82: Respuesta | F82: Relevancia | H82: Weight | I82: Attained score | J82: Raw Score
A83: a) | B83: ="¿Qué proporción de la superficie total es de tierras indígenas y comunitarias?" -> ¿Qué proporción de la superficie total es de tierras indígenas y comunitarias? | C83: Punto de referencia: plataforma global de tierras indígenas y comunitarias | E83: 0.6 | F83: Inconsequential | H83: =$E$81/COUNTA(B83,B85,B87) -> 0 | I83: =(J83*H83) -> 0 | J83: =IF(F83="Inconsequential",0.5,(1-E83)) -> 0.5
B84: Impacto de la densidad de población en SPIS | C84: Fuentes de datos para densidad de población | D84: Densidad de población | H84: =$E$81/COUNTA(B83,B85,B87) -> 0 | I84: =(J84*H84) -> 0 | J84: =IF(E85="Positive",(IF(F85="Inconsequential",6,IF(F85="Slightly important",5,IF(F85="Important",4,IF(F85="Very important",3,IF(F85="Critical",2)))))),(IF(F85="Inconsequential",3,IF(F85="Slightly important",2,IF(F85="Important",1,IF(F85="Very important",1,IF(F85="Critical",0)))))))/6 -> 0.6666666667
A85: b) | B85: ¿La densidad de población afecta positivamente o negativamente el mercado para SPIS? | C85: Datos de Densidad de Población Mundial | D85: <1 | E85: Positive | F85: Important
A87: c) | B87: ¿Tiene la densidad de población un efecto positivo o negativo en la disponibilidad de tierras de uso agrícola? | E87: Positive | F87: Inconsequential | H87: =$E$81/COUNTA(B83,B85,B87) -> 0 | I87: =(J87*H87) -> 0 | J87: =IF(E87="Positive",(IF(F87="Inconsequential",6,IF(F87="Slightly important",5,IF(F87="Important",4,IF(F87="Very important",3,IF(F87="Critical",2)))))),(IF(F87="Inconsequential",3,IF(F87="Slightly important",2,IF(F87="Important",1,IF(F87="Very important",1,IF(F87="Critical",0)))))))/6 -> 1
A90: 9 | B90: Infraestructura de transporte y comunicación | E90: Puntuación máx. posible | F90: Puntuación alcanzada
E91: ='ENTRADA_Ajuste de valoración'!F26 -> 0 | F91: =I93+I99 -> 0
B92: Preguntas | C92: Fuentes de datos nacionales de muestra | E92: Respuesta | F92: Relevancia | H92: Weight | I92: Attained score | J92: Raw Score
A93: a) | B93: Transporte | H93: =E91/COUNTA(B93,B99) -> 0 | I93: =I94+I95+I97+I98+I96 -> 0
A94: i) | B94: ="¿Cómo es la calidad de la infraestructura del transporte aéreo?" -> ¿Cómo es la calidad de la infraestructura del transporte aéreo? | C94: Datos de movilidad global | F94: Inconsequential | H94: =H93/COUNTA(B94:B98) -> 0 | I94: =(J94*H94) -> 0 | J94: =(IF(F94="Inconsequential",3.5,E94))/7 -> 0.5
A95: ii) | B95: ="¿Cómo es la calidad de la infraestructura portuaria?" -> ¿Cómo es la calidad de la infraestructura portuaria? | F95: Inconsequential | H95: =H93/COUNTA(B94:B98) -> 0 | I95: =(J95*H95) -> 0 | J95: =(IF(F95="Inconsequential",3.5,E95))/7 -> 0.5
A96: iii) | B96: ="¿Cómo es la calidad de las autovías?" -> ¿Cómo es la calidad de las autovías? | F96: Inconsequential | H96: =H93/COUNTA(B94:B98) -> 0 | I96: =(J96*H96) -> 0 | J96: =(IF(F96="Inconsequential",3.5,E96))/7 -> 0.5
A97: iv) | B97: ="¿Cómo es la calidad de la infraestructura ferroviaria?" -> ¿Cómo es la calidad de la infraestructura ferroviaria? | F97: Inconsequential | H97: =H93/COUNTA(B94:B98) -> 0 | I97: =(J97*H97) -> 0 | J97: =(IF(F97="Inconsequential",3.5,E97))/7 -> 0.5
A98: v) | B98: ="¿Qué puntuación alcanzó el índice de rendimiento logístico en 2016?" -> ¿Qué puntuación alcanzó el índice de rendimiento logístico en 2016? | C98: Índice de rendimiento logístico: calidad del comercio y la infraestructura relacionada con el transporte (1 = bajo a 5 = alto) | F98: Inconsequential | H98: =H93/COUNTA(B94:B98) -> 0 | I98: =(J98*H98) -> 0 | J98: =(IF(F98="Inconsequential",2.5,E98))/5 -> 0.5
A99: b) | B99: Comunicación | H99: =E91/COUNTA(B93,B99) -> 0 | I99: =I100+I101+I102 -> 0
A100: i) | B100: ="¿Cuál es el número de suscripciones de telefonía móvil por cada 100 habitantes?" -> ¿Cuál es el número de suscripciones de telefonía móvil por cada 100 habitantes? | C100: Unión Internacional de Telecomunicaciones, estadísticas globales del ICT Development Index (IDI) | F100: Inconsequential | H100: =H99/COUNTA(B100:B102) -> 0 | I100: =(J100*H100) -> 0 | J100: =(IF(F100="Inconsequential",50,E100))/100 -> 0.5
A101: i) | B101: ="¿Cuál es el número de suscripciones activas de banda ancha móvil por cada 100 habitantes?" -> ¿Cuál es el número de suscripciones activas de banda ancha móvil por cada 100 habitantes? | F101: Inconsequential | H101: =H99/COUNTA(B100:B102) -> 0 | I101: =(J101*H101) -> 0 | J101: =(IF(F101="Inconsequential",50,E101))/100 -> 0.5
A102: iii) | B102: ="¿Cuál fue el valor general del Índice de Desarrollo ICT Development Index (IDI) en 2017?" -> ¿Cuál fue el valor general del Índice de Desarrollo ICT Development Index (IDI) en 2017? | F102: Inconsequential | H102: =H99/COUNTA(B100:B102) -> 0 | I102: =(J102*H102) -> 0 | J102: =(IF(F102="Inconsequential",5,E102))/10 -> 0.5
C105: ¿Conoce fuentes de datos más recientes?
C106: POR FAVOR COMPARTA
C107: y ayúdenos a mejorar nuestras herramientas.
C108: Gracias

Sheet SALIDA_Resultados
D2: SALIDA - Resultados de la Evaluación de Mercado
B4: País: | C4: =ENTRADA_Precontrol!D6 -> Angola | G4: Fecha de evaluación: | H4: Fecha de evaluación: | I4: =ENTRADA_Precontrol!D8 -> 00:00:00
B5: Área de interés: | C5: =ENTRADA_Precontrol!D7 -> 0 | G5: Nombre del evaluador/a: | H5: Nombre del evaluador: | I5: =ENTRADA_Precontrol!D9 -> 0
B7: A. Potencial de Mercado para SPIS: Puntuaciones y Relevancias
B9: Puntuación Total (%) | H9: Sinopsis de las Valoraciones de Relevancia
B23: B. Potencial de Mercado para SPIS: Puntuación Total
L27: Barreras de Mercado Altas
L28: Barreras de Mercado Bajas
L29: Fuerza de Mercado Baja
L30: Mayor Fuerza de Mercado
B52: C. Potencial de Mercado de SPIS: Puntuación Comparada con el Ajuste de Valoración

Sheet Calculations (hidden)
B3: Enabling SPIS Business Factors | C3: Initial weight setting | D3: Actually attained score | E3: Difference | G3: Attained Score
A4: 1 | B4: Geophysical Parameters | C4: ='ENTRADA_Parámetros Geofísicos'!E6 -> 0.05555555556 | D4: ='ENTRADA_Parámetros Geofísicos'!F6 -> 0.05138888889 | E4: =C4-D4 -> 0.004166666667 | F4: =100%-C4 -> 0.9444444444 | G4: =D4/C4 -> 0.925
A5: 2 | B5: Government interventions | C5: ='ENTRADA_Condiciones de Mercado'!E6 -> 0.05555555556 | D5: ='ENTRADA_Condiciones de Mercado'!F6 -> 0.05555555556 | E5: =C5-D5 -> 0 | F5: =100%-C5 -> 0.9444444444 | G5: =D5/C5 -> 1
A6: 3 | B6: Development Organizations Interventions | C6: ='ENTRADA_Condiciones de Mercado'!E15 -> 0.1666666667 | D6: ='ENTRADA_Condiciones de Mercado'!F15 -> 0.1666666667 | E6: =C6-D6 -> 0 | F6: =100%-C6 -> 0.8333333333 | G6: 1
A7: 4 | B7: Financing | C7: ='ENTRADA_Condiciones de Mercado'!E23 -> 0.1666666667 | D7: ='ENTRADA_Condiciones de Mercado'!F23 -> 0.1666666667 | E7: 0 | F7: 0.8333333333 | G7: 1
A8: 5 | B8: Availability and cost of alternative sources of power for pumping | C8: ='ENTRADA_Condiciones de Mercado'!E36 -> 0.1666666667 | D8: ='ENTRADA_Condiciones de Mercado'!F36 -> 0.1111111111 | E8: 0.05555555556 | F8: 0.8333333333 | G8: 0.6666666667
A9: 6 | B9: Technical capacity for SPIS | C9: ='ENTRADA_Condiciones de Mercado'!E54 -> 0.2777777778 | D9: ='ENTRADA_Condiciones de Mercado'!F54 -> 0.2314814815 | E9: 0.0462962963 | F9: 0.7222222222 | G9: 0.8333333333
A10: 7 | B10: Awareness of solar PV and irrigation technologies | C10: ='ENTRADA_Condiciones de Mercado'!E61 -> 0 | D10: ='ENTRADA_Condiciones de Mercado'!F61 -> 0 | E10: 0 | F10: 1
A11: 8 | B11: Significance of agriculture in the local economy | C11: ='ENTRADA_Condiciones de Mercado'!E72 -> 0.1111111111 | D11: ='ENTRADA_Condiciones de Mercado'!F72 -> 0.05555555556 | E11: 0.05555555556 | F11: 0.8888888889 | G11: 0.5
A12: 9 | B12: Land use rights, ownership and tenure | C12: ='ENTRADA_Condiciones de Mercado'!E81 -> 0 | D12: ='ENTRADA_Condiciones de Mercado'!F81 -> 0 | E12: 0 | F12: 1
A13: 10 | B13: Transportation and communication infrastructure | C13: ='ENTRADA_Condiciones de Mercado'!E91 -> 0 | D13: ='ENTRADA_Condiciones de Mercado'!F91 -> 0 | E13: 0 | F13: 1
C14: =SUM(C4:C13) -> 1 | D14: =SUM(D4:D13) -> 0.8384259259 | E14: =C14-D14 -> 0.1615740741
B21: GEOPHYSICAL Parameters
C22: Doughnut | D22: Pie
B23: Red Zone | C23: 30 | D23: =IF(ENTRADA_Precontrol!T14=0,10, IF(ENTRADA_Precontrol!T14=1,7, IF(ENTRADA_Precontrol!T14=2,14, IF(ENTRADA_Precontrol!T14=3,21, IF(ENTRADA_Precontrol!T14=4,30, IF(ENTRADA_Precontrol!T14=5,45, IF(ENTRADA_Precontrol!T14=6,60, IF(ENTRADA_Precontrol!T14=7,75, IF(ENTRADA_Precontrol!T14=8,100,115))))))))) -> 75 | E23: Value
B24: Orange Zone | C24: 30 | D24: 1 | E24: Ticker
B25: Yellow Zone | C25: 30 | D25: =240-D23-D24 -> 164 | E25: Rest Value
B26: Green Zone | C26: 30
B27: Hidden Zone | C27: 120
B30: Relevance | C30: Business | D30: Geophysical | E30: Total
B31: Inconsequential | C31: =(COUNTIF('ENTRADA_Condiciones de Mercado'!$F$8:$F$102,Calculations!B31))/44 -> 0.8636363636 | D31: =(COUNTIF('ENTRADA_Parámetros Geofísicos'!$F$8:$F$11,Calculations!B31))/44 -> 0.09090909091 | E31: =SUM(C31:D31) -> 0.9545454545
B32: Slightly important | C32: =(COUNTIF('ENTRADA_Condiciones de Mercado'!$F$8:$F$102,Calculations!B32))/44 -> 0 | D32: =(COUNTIF('ENTRADA_Parámetros Geofísicos'!$F$8:$F$11,Calculations!B32))/44 -> 0 | E32: =SUM(C32:D32) -> 0
B33: Important | C33: =(COUNTIF('ENTRADA_Condiciones de Mercado'!$F$8:$F$102,Calculations!B33))/44 -> 0.04545454545 | D33: =(COUNTIF('ENTRADA_Parámetros Geofísicos'!$F$8:$F$11,Calculations!B33))/44 -> 0 | E33: =SUM(C33:D33) -> 0.04545454545
B34: Very important | C34: =(COUNTIF('ENTRADA_Condiciones de Mercado'!$F$8:$F$102,Calculations!B34))/44 -> 0 | D34: =(COUNTIF('ENTRADA_Parámetros Geofísicos'!$F$8:$F$11,Calculations!B34))/44 -> 0 | E34: =SUM(C34:D34) -> 0
B35: Critical | C35: =(COUNTIF('ENTRADA_Condiciones de Mercado'!$F$8:$F$102,Calculations!B35))/44 -> 0 | D35: =(COUNTIF('ENTRADA_Parámetros Geofísicos'!$F$8:$F$11,Calculations!B35))/44 -> 0 | E35: =SUM(C35:D35) -> 0
C36: =SUM(C31:C35) -> 0.9090909091 | D36: =SUM(D31:D35) -> 0.09090909091 | E36: =SUM(E31:E35) -> 1

Sheet Traducción
A2: HOJA DE TRADUCCIÓN
A4: Introducción
A5: Algunas partes del texto usado en esta herramienta forman parte de fórmulas basadas en reconocimento de texto. Para mantener la integridad y el funcionamiento de las fórmulas, dichos fragmentos permanecerán en inglés. Una lista de los fragmentos de texto y su traducción correspondiente ha sido compilada en esta hoja de traducción complementaria:
A6: Texto original en inglés | B6: Hoja | C6: Traducción al español
A7: 1C to 30C | B7: INPUT_Geophysical Parameters | C7: Entre 1ºC y 30ºC
A8: Actually attained score | B8: OUTPUT_Result | C8: Puntuación obtenida realmente
A9: Additional Geophysical Parameters | B9: INPUT_Weight setting | C9: Parámetros geofísicos adicionales
A10: Additional Geophysical Parameters | B10: OUTPUT_Result | C10: Parámetros geofísicos adicionales
A11: Availability and Cost of Alternatives | B11: INPUT_Weight setting | C11: Disponibilidad y costo de alternativas
A12: Availability and Cost of Alternatives | B12: OUTPUT_Result | C12: Disponibilidad y costo de alternativas
A13: Awareness of Solar PV and Irrigation Tecnologies | B13: INPUT_Weight setting | C13: Conocimiento de las Tecnologías SPIS
A14: Awareness of Solar PV and Irrigation Tecnologies | B14: OUTPUT_Result | C14: Conocimiento de las Tecnologías SPIS
A15: Bare areas (sand dunes, gravel plains, etc) | B15: INPUT_Pre-check | C15: Áreas sin vegetación (dunas de arena, llanuras de grava, etc.)
A16: Below 1C | B16: INPUT_Geophysical Parameters | C16: Por debajo de 1ºC
A17: Beyond 100 m | B17: INPUT_Geophysical Parameters | C17: Más allá de 100 m
A18: Critical | B18: various sheets | C18: Crítico/a
A19: Critical Geophysical Parameters NOT IDEAL for SPIS | B19: INPUT_Pre-check | C19: Parámetros geofísicos críticos - NO IDEAL para SPIS
A20: Cropland irrigated or post-flooding | B20: INPUT_Pre-check | C20: Tierras de cultivo irrigadas o posteriores a las inundaciones
A21: Cropland, rainfed | B21: INPUT_Pre-check | C21: Tierras de cultivo, secano
A22: Dense forest closed (tree cover above 40%) | B22: INPUT_Pre-check | C22: Bosque denso (cobertura arbórea superior al 40%)
A23: Development Organizations Interventions | B23: INPUT_Weight setting | C23: Intervenciones de organizaciones de desarrollo
A24: Development Organizations Interventions | B24: OUTPUT_Result | C24: Intervenciones de organizaciones de desarrollo
A25: Financing | B25: INPUT_Weight setting | C25: Financiación
A26: Financing | B26: OUTPUT_Result | C26: Financiación
A27: Flat | B27: INPUT_Geophysical Parameters | C27: Plano
A28: Flood plains brackish water | B28: INPUT_Pre-check | C28: Inundaciones, llanuras, agua salobre
A29: Flood plains fresh water | B29: INPUT_Pre-check | C29: Inundaciones, llanuras, agua dulce
A30: Geophysical Parameters | B30: OUTPUT_Result | C30: Parámetros geofísicos
A31: Government Interventions | B31: INPUT_Weight setting | C31: Intervenciones del gobierno
A32: Government Interventions | B32: OUTPUT_Result | C32: Intervenciones del gobierno
A33: Grassland | B33: INPUT_Pre-check | C33: Pradera
A34: High | B34: INPUT_Business Conditions | C34: Alto
A35: High Income ($12.236 or more) | B35: INPUT_Business Conditions | C35: Ingresos altos (mayores que 12.236 dólares)
A36: Highly Suitable | B36: INPUT_Pre-check | C36: Muy adecuado
A37: Ignore | B37: various sheets | C37: Ignorar
A38: Important | B38: various sheets | C38: Importante
A39: Inconsequential | B39: various sheets | C39: Inconsecuente
A40: Initial weight setting | B40: OUTPUT_Result | C40: Ajuste de valoración inicial
A41: Land Tenure | B41: INPUT_Weight setting | C41: Tenencia de tierras
A42: Land Tenure | B42: OUTPUT_Result | C42: Tenencia de tierras
A43: Large Livestock | B43: INPUT_Geophysical Parameters | C43: Ganado grande
A44: Lichens and mosses | B44: INPUT_Pre-check | C44: Líquenes y musgos
A45: Light forest open (tree cover up to 40%) | B45: INPUT_Pre-check | C45: Bosque claro (cobertura de árboles hasta 40%)
A46: Livestock and Crops | B46: INPUT_Geophysical Parameters | C46: Ganadería y cultivos
A47: Low | B47: INPUT_Business Conditions | C47: Bajo
A48: Low income ($1,005 or less) | B48: INPUT_Business Conditions | C48: Ingresos bajos ($1,005 o menos)
A49: Lower Middle Income ($1,006 to $3,955) | B49: INPUT_Business Conditions | C49: Ingresos medio bajos (entre $1,006 y $3,955)
A50: Marginally Suitable | B50: INPUT_Pre-check | C50: Marginalmente adecuado
A51: Medium forest open to closed (tree cover above 40%) | B51: INPUT_Pre-check | C51: Bosque medio abierto a cerrado (cobertura arbórea por encima de 40%)
A52: Moderate | B52: INPUT_Geophysical Parameters | C52: Moderado
A53: Moderately Suitable | B53: INPUT_Pre-check | C53: Moderadamente adecuado
A54: Mosaic crop land with natural vegetation | B54: INPUT_Pre-check | C54: Tierra de cultivos de mosaico con vegetación natural
A55: Negative | B55: INPUT_Business Conditions | C55: Negativo
A56: No | B56: various sheets | C56: No
A57: Not Suitable | B57: INPUT_Pre-check | C57: No adecuado
A58: Perennial Crops | B58: INPUT_Geophysical Parameters | C58: Cultivos perennes
A59: Permanent snow and ice | B59: INPUT_Pre-check | C59: Nieve y hielo
A60: Positive | B60: INPUT_Business Conditions | C60: Positivo
A61: Proceed to INPUT_Weight Setting | B61: INPUT_Pre-check | C61: Proceda a ENTRADA_Ajuste de Valoración
A62: Regular | B62: INPUT_Business Conditions | C62: Regular
A63: Seasonal and Perennial Crops | B63: INPUT_Geophysical Parameters | C63: Cultivos estacionales y perennes
A64: Seasonal Crops | B64: INPUT_Geophysical Parameters | C64: Cultivos estacionales
A65: Semi arid sparse vegetation | B65: INPUT_Pre-check | C65: Vegetación escasa semi-árida
A66: Shrubland | B66: INPUT_Pre-check | C66: Matorral
A67: Significance of Agriculture to the Local Economy | B67: INPUT_Weight setting | C67: Importancia de la agricultura para la economía local
A68: Significance of Agriculture to the Local Economy | B68: OUTPUT_Result | C68: Importancia de la agricultura para la economía local
A69: Slightly important | B69: various sheets | C69: Ligeramente importante
A70: Small Livestock | B70: INPUT_Geophysical Parameters | C70: Ganado pequeño
A71: SPIS Suitability | B71: INPUT_Pre-check | C71: Aptitud de SPIS
A72: Steep | B72: INPUT_Geophysical Parameters | C72: Empinado
A73: Technical Capacity | B73: INPUT_Weight setting | C73: Capacidad técnica
A74: Technical Capacity | B74: OUTPUT_Result | C74: Capacidad técnica
A75: Transport and Communication Infrastructure | B75: INPUT_Weight setting | C75: Transporte e infraestructura de comunicación
A76: Transport and Communication Infrastructure | B76: OUTPUT_Result | C76: Transporte e infraestructura de comunicación
A77: Unknown | B77: various sheets | C77: Desconocido
A78: Unknown | B78: INPUT_Business Conditions | C78: Desconocido
A79: Up to 7 m | B79: INPUT_Geophysical Parameters | C79: Hasta 7 m
A80: Upper Middle Income ($3,956 to $12,235) | B80: INPUT_Business Conditions | C80: Ingresos medio altos (entre $3,956 y $12,235)
A81: Urban areas | B81: INPUT_Pre-check | C81: Áreas urbanas
A82: Very High | B82: INPUT_Business Conditions | C82: Muy alto
A83: Very important | B83: various sheets | C83: Muy importante
A84: Water bodies | B84: INPUT_Pre-check | C84: Cuerpos de agua
A85: Weight Setting | B85: INPUT_Weight setting | C85: Ajuse de valoración
A86: Yes | B86: various sheets | C86: Sí

Sheet Lists (hidden)
A1: Countries | B1: Development Agencies | C1: Facilitites and Funds | D1: Other NGOs, Foundations | E1: Rural MPI | F1: GNI per Capita | G1: pump manufacturers
A2: Afghanistan | B2: African Development Bank | C2: CTF (Clean Technology Fund) | D2: AAA (Adaptation of African Agriculture) | E2: 0.10 - 1.86 | F2: Low income ($1,005 or less) | G2: AllightSykes
A3: Albania | B3: CGIAR (Climate Change, Agriculture and Food Security) | C3: EcoMicro | D3: AGRA | E3: 1.87 - 8.80 | F3: Lower Middle Income ($1,006 to $3,955) | G3: Ebara
A4: Algeria | B4: DFID ( Department for International Development - United Kingdom) | C4: GEF (Global Environment Facility) | D4: Energy 4Impact | E4: 8.81 - 26.06 | F4: Upper Middle Income ($3,956 to $12,235) | G4: Flowserve
A5: American Samoa | B5: FAO (Food and Agriculture Organization) | C5: GPOBA (Global Partnershi on Output Based Aid) | D5: IFPRI (International Food Policy Research Institute) | E5: 26.07 - 48.54 | F5: High Income ($12.236 or more) | G5: Grundfos
A6: Andorra | B6: GACSA (Global Alliance For Climate-Smart Agriculture) | C6: ICBA | D6: Lutheran World Relief | E6: 48.55 - 68.29 | G6: Kirloskar Brothers Lt
A7: Angola | B7: GIZ (Deutsche Gesellschaft für Internationale Zusammenarbeit GmbH) | C7: ICBA (International Center for Biosaline Agriculture) | D7: The Practica Foundation | E7: 68.30 - 84.33 | G7: KSB
A8: Anguilla | B8: IFAD (International Fund for Agriculture Development) | E8: 84.34 - 96.90 | G8: Lorentz
A9: Antarctica | B9: JICA (Japan International Cooperation Agency) | E9: No data | G9: Ruhrpumpen Group
A10: Antigua and Barbuda | B10: Nordic Development Fund | G10: Suzler Ltd
A11: Argentina | B11: OECD (Organisation for Economic Co-operation and Development) | G11: Weir Group
A12: Armenia | B12: OFID (OPEC Fund for International Development) | G12: Wilo SE
A13: Aruba | B13: SIDA (Swedish International Development Cooperation Agency) | G13: Xylem
A14: Australia | B14: USAID
A15: Austria | B15: World Bank Group
A16: Azerbaijan | B16: World Food Programme
A17: Bahamas
A18: Bahrain
A19: Bangladesh
A20: Barbados
A21: Belarus
A22: Belgium
A23: Belize
A24: Benin
A25: Bermuda
A26: Bhutan
A27: Bolivia
A28: Bosnia and Herzegovina
A29: Botswana
A30: Bouvet Island
A31: Brazil
A32: British Indian Ocean Territory
A33: Brunei Darussalam
A34: Bulgaria
A35: Burkina Faso
A36: Burundi
A37: Cambodia
A38: Cameroon
A39: Canada
A40: Cape Verde
A41: Cayman Islands
A42: Central African Republic
A43: Chad
A44: Chile
A45: China
A46: Christmas Island
A47: Cocos (Keeling Islands)
A48: Colombia
A49: Comoros
A50: Congo
A51: Cook Islands
A52: Costa Rica
A53: Cote D'Ivoire (Ivory Coast)
A54: Croatia (Hrvatska
A55: Cuba
A56: Cyprus
A57: Czech Republic
A58: Denmark
A59: Djibouti
A60: Dominica
A61: Dominican Republic
A62: East Timor
A63: Ecuador
A64: Egypt
A65: El Salvador
A66: Equatorial Guinea
A67: Eritrea
A68: Estonia
A69: Ethiopia
A70: Falkland Islands (Malvinas)
A71: Faroe Islands
A72: Fiji
A73: Finland
A74: France
A75: France
A76: Metropolitan
A77: French Guiana
A78: French Polynesia
A79: French Southern Territories
A80: Gabon
A81: Gambia
A82: Georgia
A83: Germany
A84: Ghana
A85: Gibraltar
A86: Greece
A87: Greenland
A88: Grenada
A89: Guadeloupe
A90: Guam
A91: Guatemala
A92: Guinea
A93: Guinea-Bissau
A94: Guyana
A95: Haiti
A96: Heard and McDonald Islands
A97: Honduras
A98: Hong Kong
A99: Hungary
A100: Iceland
A101: India
A102: Indonesia
A103: Iran
A104: Iraq
A105: Ireland
A106: Israel
A107: Italy
A108: Jamaica
A109: Japan
A110: Jordan
A111: Kazakhstan
A112: Kenya
A113: Kiribati
A114: Korea (North)
A115: Korea (South)
A116: Kuwait
A117: Kyrgyzstan
A118: Laos
A119: Latvia
A120: Lebanon
A121: Lesotho
A122: Liberia
A123: Libya
A124: Liechtenstein
A125: Lithuania
A126: Luxembourg
A127: Macau
A128: Macedonia
A129: Madagascar
A130: Malawi
A131: Malaysia
A132: Maldives
A133: Mali
A134: Malta
A135: Marshall Islands
A136: Martinique
A137: Mauritania
A138: Mauritius
A139: Mayotte
A140: Mexico
A141: Micronesia
A142: Moldova
A143: Monaco
A144: Mongolia
A145: Montserrat
A146: Morocco
A147: Mozambique
A148: Myanmar
A149: Namibia
A150: Nauru
A151: Nepal
A152: Netherlands
A153: Netherlands Antilles
A154: New Caledonia
A155: New Zealand
A156: Nicaragua
A157: Niger
A158: Nigeria
A159: Niue
A160: Norfolk Island
A161: Northern Mariana Islands
A162: Norway
A163: Oman
A164: Pakistan
A165: Palau
A166: Panama
A167: Papua New Guinea
A168: Paraguay
A169: Peru
A170: Philippines
A171: Pitcairn
A172: Poland
A173: Portugal
A174: Puerto Rico
A175: Qatar
A176: Reunion
A177: Romania
A178: Russian Federation
A179: Rwanda
A180: Saint Kitts and Nevis
A181: Saint Lucia
A182: Saint Vincent and The Grenadines
A183: Samoa
A184: San Marino
A185: Sao Tome and Principe
A186: Saudi Arabia
A187: Senegal
A188: Seychelles
A189: Sierra Leone
A190: Singapore
A191: Slovak Republic
A192: Slovenia
A193: Solomon Islands
A194: Somalia
A195: South Africa
A196: S. Georgia and S. Sandwich Isls.
A197: Spain
A198: Sri Lanka
A199: St. Helena
A200: St. Pierre and Miquelon
... 41 more rows

Sheet Lists 2 (hidden)
A1: Column1 | B1: Column2 | C1: Column3 | D1: Column4 | E1: Column1 | H1: Solar Ranges | J1: Groundwater Depth | L1: Topography | N1: Ambient temperature | P1: Population Density
A2: Cropland, rainfed | B2: Highly Suitable | E2: Afghanistan | H2: 0 - 948 | J2: Up to 7m | L2: Mountainous | N2: Below 1C | P2: <1
A3: Cropland irrigated or post-flooding | B3: Highly Suitable | E3: Albania | H3: 949 - 1094 | J3: 7m - 25m | L3: Steep hills | N3: 1C to 30C | P3: 1 - 5
A4: Mosaic crop land with natural vegetation | B4: Highly Suitable | E4: Algeria | H4: 1095 - 1460 | J4: 25m - 50m | L4: Rolling hills | P4: 5 - 25
A5: Light forest open (tree cover up to 40%) | B5: Moderately Suitable | E5: American Samoa | H5: Above 1460 | J5: 50m - 100m | L5: Level | P5: 25 - 250
A6: Medium forest open to closed (tree cover above 40%) | B6: Marginally Suitable | E6: Andorra | J6: Beyond 100m | L6: Mixed various | P6: 250 - 1000
A7: Dense forest closed (tree cover above 40%) | B7: Not Suitable | E7: Angola | J7: Unknown | P7: >1000
A8: Shrubland | B8: Moderately Suitable | E8: Anguilla
A9: Grassland | B9: Moderately Suitable | E9: Antarctica
A10: Lichens and mosses | B10: Marginally Suitable | E10: Antigua and Barbuda
A11: Semi arid sparse vegetation | B11: Moderately Suitable | E11: Argentina
A12: Flood plains fresh water | B12: Marginally Suitable | E12: Armenia
A13: Flood plains brackish water | B13: Not Suitable | E13: Aruba
A14: Urban areas | B14: Not Suitable | E14: Australia
A15: Bare areas (sand dunes, gravel plains, etc) | B15: Marginally Suitable | E15: Austria
A16: Water bodies | B16: Not Suitable | E16: Azerbaijan
A17: Permanent snow and ice | B17: Not Suitable | E17: Bahamas
E18: Bahrain
E19: Bangladesh
E20: Barbados
E21: Belarus
E22: Belgium
E23: Belize
E24: Benin
E25: Bermuda
E26: Bhutan
E27: Bolivia
E28: Bosnia and Herzegovina
E29: Botswana
E30: Bouvet Island
E31: Brazil
E32: British Indian Ocean Territory
E33: Brunei Darussalam
E34: Bulgaria
E35: Burkina Faso
E36: Burundi
E37: Cambodia
E38: Cameroon
E39: Canada
E40: Cape Verde
E41: Cayman Islands
E42: Central African Republic
E43: Chad
E44: Chile
E45: China
E46: Christmas Island
E47: Cocos (Keeling Islands)
E48: Colombia
E49: Comoros
E50: Congo
E51: Cook Islands
E52: Costa Rica
E53: Cote D'Ivoire (Ivory Coast)
E54: Croatia (Hrvatska
E55: Cuba
E56: Cyprus
E57: Czech Republic
E58: Denmark
E59: Djibouti
E60: Dominica
E61: Dominican Republic
E62: East Timor
E63: Ecuador
E64: Egypt
E65: El Salvador
E66: Equatorial Guinea
E67: Eritrea
E68: Estonia
E69: Ethiopia
E70: Falkland Islands (Malvinas)
E71: Faroe Islands
E72: Fiji
E73: Finland
E74: France
E75: France
E76: Metropolitan
E77: French Guiana
E78: French Polynesia
E79: French Southern Territories
E80: Gabon
E81: Gambia
E82: Georgia
E83: Germany
E84: Ghana
E85: Gibraltar
E86: Greece
E87: Greenland
E88: Grenada
E89: Guadeloupe
E90: Guam
E91: Guatemala
E92: Guinea
E93: Guinea-Bissau
E94: Guyana
E95: Haiti
E96: Heard and McDonald Islands
E97: Honduras
E98: Hong Kong
E99: Hungary
E100: Iceland
E101: India
E102: Indonesia
E103: Iran
E104: Iraq
E105: Ireland
E106: Israel
E107: Italy
E108: Jamaica
E109: Japan
E110: Jordan
E111: Kazakhstan
E112: Kenya
E113: Kiribati
E114: Korea (North)
E115: Korea (South)
E116: Kuwait
E117: Kyrgyzstan
E118: Laos
E119: Latvia
E120: Lebanon
E121: Lesotho
E122: Liberia
E123: Libya
E124: Liechtenstein
E125: Lithuania
E126: Luxembourg
E127: Macau
E128: Macedonia
E129: Madagascar
E130: Malawi
E131: Malaysia
E132: Maldives
E133: Mali
E134: Malta
E135: Marshall Islands
E136: Martinique
E137: Mauritania
E138: Mauritius
E139: Mayotte
E140: Mexico
E141: Micronesia
E142: Moldova
E143: Monaco
E144: Mongolia
E145: Montserrat
E146: Morocco
E147: Mozambique
E148: Myanmar
E149: Namibia
E150: Nauru
E151: Nepal
E152: Netherlands
E153: Netherlands Antilles
E154: New Caledonia
E155: New Zealand
E156: Nicaragua
E157: Niger
E158: Nigeria
E159: Niue
E160: Norfolk Island
E161: Northern Mariana Islands
E162: Norway
E163: Oman
E164: Pakistan
E165: Palau
E166: Panama
E167: Papua New Guinea
E168: Paraguay
E169: Peru
E170: Philippines
E171: Pitcairn
E172: Poland
E173: Portugal
E174: Puerto Rico
E175: Qatar
E176: Reunion
E177: Romania
E178: Russian Federation
E179: Rwanda
E180: Saint Kitts and Nevis
E181: Saint Lucia
E182: Saint Vincent and The Grenadines
E183: Samoa
E184: San Marino
E185: Sao Tome and Principe
E186: Saudi Arabia
E187: Senegal
E188: Seychelles
E189: Sierra Leone
E190: Singapore
E191: Slovak Republic
E192: Slovenia
E193: Solomon Islands
E194: Somalia
E195: South Africa
E196: S. Georgia and S. Sandwich Isls.
E197: Spain
E198: Sri Lanka
E199: St. Helena
E200: St. Pierre and Miquelon
... 41 more rows
